[Event "GrandPrix_30.05"]
[Site "Chess.com"]
[Date "2020.05.30"]
[Round "5"]
[White "Alex_Krayz"]
[Black "ninullia"]
[Result "1-0"]
[WhiteElo "2203"]
[BlackElo "2240"]
[TimeControl "600+2"]
[EndTime "10:27:41 PDT"]
[Termination "Alex_Krayz won on time"]

1. e4 {[%clk 0:10:01.9]} 1... e5 {[%clk 0:09:58.6]} 2. Nf3 {[%clk 0:10:01.6]}
2... Nc6 {[%clk 0:09:59.2]} 3. Bb5 {[%clk 0:10:02.3]} 3... a6 {[%clk 0:10:00.4]}
4. Ba4 {[%clk 0:10:03]} 4... Nf6 {[%clk 0:10:02]} 5. Qe2 {[%clk 0:10:03.8]} 5...
b5 {[%clk 0:09:58.8]} 6. Bb3 {[%clk 0:10:03.8]} 6... Be7 {[%clk 0:10:00.2]} 7.
c3 {[%clk 0:10:03.3]} 7... d6 {[%clk 0:09:58.9]} 8. O-O {[%clk 0:10:02.5]} 8...
O-O {[%clk 0:09:58.4]} 9. Rd1 {[%clk 0:10:02.4]} 9... Bg4 {[%clk 0:09:52.7]} 10.
h3 {[%clk 0:10:02.1]} 10... Bh5 {[%clk 0:09:52.9]} 11. d3 {[%clk 0:10:03.1]}
11... Kh8 {[%clk 0:09:49.4]} 12. Nbd2 {[%clk 0:10:03.3]} 12... Nd7 {[%clk
0:09:37.7]} 13. Nf1 {[%clk 0:09:54.7]} 13... Na5 {[%clk 0:08:59.8]} 14. Bc2
{[%clk 0:09:53]} 14... f6 {[%clk 0:08:37.6]} 15. Ng3 {[%clk 0:09:42.5]} 15...
Bf7 {[%clk 0:08:38]} 16. b4 {[%clk 0:09:18.8]} 16... Nc6 {[%clk 0:08:23.7]} 17.
Bb3 {[%clk 0:09:07.1]} 17... a5 {[%clk 0:08:15.4]} 18. Bxf7 {[%clk 0:08:50.5]}
18... Rxf7 {[%clk 0:08:17.3]} 19. c4 {[%clk 0:08:31.4]} 19... bxc4 {[%clk
0:07:55]} 20. b5 {[%clk 0:08:30]} 20... cxd3 {[%clk 0:07:48.4]} 21. Qxd3 {[%clk
0:08:27.5]} 21... Na7 {[%clk 0:06:56.5]} 22. Be3 {[%clk 0:08:19.9]} 22... Bf8
{[%clk 0:06:32.8]} 23. Qd5 {[%clk 0:08:02.9]} 23... Kg8 {[%clk 0:06:10.1]} 24.
Rac1 {[%clk 0:07:38.5]} 24... Qb8 {[%clk 0:06:00.4]} 25. a4 {[%clk 0:07:32.6]}
25... Nc8 {[%clk 0:05:41.2]} 26. Rxc7 {[%clk 0:06:55.2]} 26... Qxc7 {[%clk
0:04:00.2]} 27. Qxa8 {[%clk 0:06:52.6]} 27... g6 {[%clk 0:04:01.2]} 28. Rc1
{[%clk 0:06:47]} 28... Nc5 {[%clk 0:04:01.3]} 29. Bd2 {[%clk 0:05:02.3]} 29...
Nb6 {[%clk 0:03:26.7]} 30. Qxa5 {[%clk 0:04:58.1]} 30... Nbxa4 {[%clk
0:03:27.7]} 31. Qa8 {[%clk 0:04:07.7]} 31... Qb7 {[%clk 0:03:08.2]} 32. Qxb7
{[%clk 0:03:30.9]} 32... Rxb7 {[%clk 0:03:10.1]} 33. Rb1 {[%clk 0:03:31.1]}
33... Kf7 {[%clk 0:03:05.4]} 34. Ne1 {[%clk 0:03:12.5]} 34... Ne6 {[%clk
0:02:36.7]} 35. Nc2 {[%clk 0:03:08.3]} 35... Nc7 {[%clk 0:02:29.3]} 36. Rb4
{[%clk 0:02:41.8]} 36... Nc5 {[%clk 0:02:17.3]} 37. Na3 {[%clk 0:02:30.3]} 37...
d5 {[%clk 0:01:56.8]} 38. exd5 {[%clk 0:02:29.2]} 38... Nxd5 {[%clk 0:01:54.6]}
39. Rb1 {[%clk 0:02:24.2]} 39... Ne6 {[%clk 0:01:36.4]} 40. Nc4 {[%clk
0:02:19.4]} 40... Nd4 {[%clk 0:01:14.5]} 41. Ne4 {[%clk 0:02:13.9]} 41... Ke6
{[%clk 0:01:06.5]} 42. b6 {[%clk 0:02:08.8]} 42... h6 {[%clk 0:01:07]} 43. Be3
{[%clk 0:01:45]} 43... f5 {[%clk 0:00:58.3]} 44. Bxd4 {[%clk 0:01:41.6]} 44...
exd4 {[%clk 0:00:59.4]} 45. Ned2 {[%clk 0:01:36]} 45... Kf6 {[%clk 0:00:34.7]}
46. Rb5 {[%clk 0:01:17.5]} 46... Nc3 {[%clk 0:00:23.6]} 47. Ra5 {[%clk
0:01:14.7]} 47... d3 {[%clk 0:00:13.4]} 48. Ra7 {[%clk 0:01:13]} 48... Rb8
{[%clk 0:00:14.7]} 49. Rc7 {[%clk 0:01:03.8]} 49... Ke6 {[%clk 0:00:06]} 50. b7
{[%clk 0:00:56.5]} 50... Nd5 {[%clk 0:00:06.8]} 51. Rc8 {[%clk 0:00:54.5]} 51...
Rxb7 {[%clk 0:00:06]} 52. Rxf8 {[%clk 0:00:55.1]} 52... Nf4 {[%clk 0:00:06.8]}
53. Kh2 {[%clk 0:00:53.8]} 53... Ra7 {[%clk 0:00:06.3]} 54. g3 {[%clk
0:00:54.1]} 54... Nd5 {[%clk 0:00:04.2]} 55. Rg8 {[%clk 0:00:53.2]} 55... Ne7
{[%clk 0:00:04.3]} 56. Rd8 {[%clk 0:00:52.4]} 56... Nd5 {[%clk 0:00:03.9]} 57.
Rd6+ {[%clk 0:00:53.1]} 57... Ke7 {[%clk 0:00:05.2]} 58. Rxd5 {[%clk 0:00:54.2]}
1-0

[Event "GrandPrix_30.05"]
[Site "Chess.com"]
[Date "2020.05.30"]
[Round "5"]
[White "cantdefyme"]
[Black "tianachess"]
[Result "0-1"]
[WhiteElo "1910"]
[BlackElo "1994"]
[TimeControl "600+2"]
[EndTime "10:27:50 PDT"]
[Termination "tianachess won on time"]

1. e4 {[%clk 0:10:01.9]} 1... Nf6 {[%clk 0:09:41.4]} 2. e5 {[%clk 0:10:02.2]}
2... Nd5 {[%clk 0:09:41.8]} 3. d4 {[%clk 0:10:03.1]} 3... d6 {[%clk 0:09:42.3]}
4. Nf3 {[%clk 0:10:04.3]} 4... Nc6 {[%clk 0:09:38]} 5. c4 {[%clk 0:09:48.1]}
5... Nb6 {[%clk 0:09:37.3]} 6. exd6 {[%clk 0:09:45.4]} 6... exd6 {[%clk
0:09:37.2]} 7. Nc3 {[%clk 0:09:35]} 7... Be7 {[%clk 0:09:37.1]} 8. d5 {[%clk
0:09:32.2]} 8... Ne5 {[%clk 0:09:16]} 9. Be2 {[%clk 0:09:32.7]} 9... Nxf3+
{[%clk 0:08:36.4]} 10. Bxf3 {[%clk 0:09:34.6]} 10... O-O {[%clk 0:08:37.4]} 11.
Qd3 {[%clk 0:09:11]} 11... Nd7 {[%clk 0:07:55.2]} 12. O-O {[%clk 0:09:08.2]}
12... Ne5 {[%clk 0:07:48.8]} 13. Qe2 {[%clk 0:09:04.5]} 13... Re8 {[%clk
0:06:48.5]} 14. Bf4 {[%clk 0:08:49.1]} 14... Ng6 {[%clk 0:06:21.3]} 15. Be3
{[%clk 0:07:48.2]} 15... Bf5 {[%clk 0:05:51.2]} 16. Bg4 {[%clk 0:07:41.7]} 16...
Qd7 {[%clk 0:05:37.9]} 17. Bxf5 {[%clk 0:07:34.4]} 17... Qxf5 {[%clk 0:05:38]}
18. Rfe1 {[%clk 0:07:31.4]} 18... Bg5 {[%clk 0:05:13.1]} 19. Qd2 {[%clk
0:07:20.2]} 19... Bf6 {[%clk 0:04:06.8]} 20. Bd4 {[%clk 0:06:54.5]} 20... Bg5
{[%clk 0:02:30]} 21. Qd1 {[%clk 0:06:31.7]} 21... Rxe1+ {[%clk 0:02:26.6]} 22.
Qxe1 {[%clk 0:06:32.4]} 22... Qd3 {[%clk 0:02:25.2]} 23. Qe4 {[%clk 0:05:13.5]}
23... Qxc4 {[%clk 0:02:23.9]} 24. Re1 {[%clk 0:05:14.7]} 24... Bd2 {[%clk
0:01:00.2]} 25. Re2 {[%clk 0:04:51.8]} 25... Bxc3 {[%clk 0:01:00.5]} 26. bxc3
{[%clk 0:04:37.5]} 26... c6 {[%clk 0:00:20.6]} 27. dxc6 {[%clk 0:03:53.2]} 27...
bxc6 {[%clk 0:00:21.4]} 28. h4 {[%clk 0:03:49.5]} 28... Nf8 {[%clk 0:00:18]} 29.
h5 {[%clk 0:02:55.8]} 29... c5 {[%clk 0:00:18.2]} 30. Rb2 {[%clk 0:01:42.9]}
30... Rd8 {[%clk 0:00:17.5]} 31. Qh4 {[%clk 0:01:40.7]} 31... f6 {[%clk
0:00:17.2]} 32. Bxf6 {[%clk 0:01:38.2]} 32... Qxh4 {[%clk 0:00:17.2]} 33. Bxh4
{[%clk 0:01:40.1]} 33... Re8 {[%clk 0:00:18.3]} 34. Rb7 {[%clk 0:01:26.6]} 34...
Re1+ {[%clk 0:00:18.3]} 35. Kh2 {[%clk 0:01:25.8]} 35... Re4 {[%clk 0:00:18.9]}
36. Be7 {[%clk 0:01:01.7]} 36... Ne6 {[%clk 0:00:18.8]} 37. Rxa7 {[%clk
0:00:44.8]} 37... d5 {[%clk 0:00:19.4]} 38. Rd7 {[%clk 0:00:34.9]} 38... d4
{[%clk 0:00:19.7]} 39. cxd4 {[%clk 0:00:31.5]} 39... cxd4 {[%clk 0:00:20.4]} 40.
f3 {[%clk 0:00:28.3]} 40... Re2 {[%clk 0:00:21]} 41. Bb4 {[%clk 0:00:15.8]}
41... Nf4 {[%clk 0:00:20.4]} 42. Rxd4 {[%clk 0:00:12.5]} 42... Nxg2 {[%clk
0:00:17.7]} 43. Kg3 {[%clk 0:00:07.2]} 43... Rxa2 {[%clk 0:00:17.4]} 44. Bd2
{[%clk 0:00:07]} 44... Ne1 {[%clk 0:00:10]} 45. Bxe1 {[%clk 0:00:07.7]} 45...
Re2 {[%clk 0:00:09.7]} 46. Bf2 {[%clk 0:00:08.1]} 46... Re5 {[%clk 0:00:10.4]}
47. Rd7 {[%clk 0:00:07]} 47... Rxh5 {[%clk 0:00:10.3]} 48. Kg4 {[%clk 0:00:05]}
48... Rh2 {[%clk 0:00:09.7]} 49. Bd4 {[%clk 0:00:04.7]} 49... Rg2+ {[%clk
0:00:10.5]} 50. Kf5 {[%clk 0:00:05.6]} 50... h5 {[%clk 0:00:10.1]} 51. f4 {[%clk
0:00:03.5]} 51... h4 {[%clk 0:00:11.1]} 0-1

[Event "GrandPrix_30.05"]
[Site "Chess.com"]
[Date "2020.05.30"]
[Round "5"]
[White "EvgenyRomanov"]
[Black "TheNextLevelFan"]
[Result "1-0"]
[WhiteElo "2231"]
[BlackElo "2300"]
[TimeControl "600+2"]
[EndTime "10:27:54 PDT"]
[Termination "EvgenyRomanov won on time"]

1. d4 {[%clk 0:09:57.3]} 1... d5 {[%clk 0:10:00.3]} 2. Nf3 {[%clk 0:09:56.7]}
2... Nf6 {[%clk 0:10:00.7]} 3. Bg5 {[%clk 0:09:57.5]} 3... Ne4 {[%clk
0:10:00.8]} 4. Bh4 {[%clk 0:09:58.3]} 4... c5 {[%clk 0:09:59.9]} 5. dxc5 {[%clk
0:09:59.3]} 5... Nxc5 {[%clk 0:09:52.7]} 6. Nc3 {[%clk 0:09:54.7]} 6... Qa5
{[%clk 0:08:57.5]} 7. Qxd5 {[%clk 0:09:28.9]} 7... Nc6 {[%clk 0:08:56.6]} 8. Nd4
{[%clk 0:08:02.7]} 8... Nb4 {[%clk 0:08:19]} 9. Qc4 {[%clk 0:06:27.9]} 9... e5
{[%clk 0:08:18.8]} 10. Qb5+ {[%clk 0:05:24.9]} 10... Qxb5 {[%clk 0:08:18.5]} 11.
Ndxb5 {[%clk 0:05:26.8]} 11... Nxc2+ {[%clk 0:08:09.8]} 12. Kd2 {[%clk
0:05:27.8]} 12... Nxa1 {[%clk 0:08:11.6]} 13. Nc7+ {[%clk 0:05:28.7]} 13... Kd7
{[%clk 0:08:10.7]} 14. Nxa8 {[%clk 0:05:30.4]} 14... b6 {[%clk 0:07:45.3]} 15.
e3 {[%clk 0:04:41.5]} 15... Bb7 {[%clk 0:07:38.3]} 16. Bb5+ {[%clk 0:04:42]}
16... Kc8 {[%clk 0:07:39.8]} 17. Nxb6+ {[%clk 0:04:38.5]} 17... axb6 {[%clk
0:07:39.9]} 18. Rxa1 {[%clk 0:04:39.1]} 18... Bxg2 {[%clk 0:07:36.3]} 19. b4
{[%clk 0:03:31.3]} 19... Ne6 {[%clk 0:07:32.8]} 20. a3 {[%clk 0:03:23.9]} 20...
g5 {[%clk 0:07:16]} 21. Bg3 {[%clk 0:03:24]} 21... Bg7 {[%clk 0:07:17.6]} 22.
Bc4 {[%clk 0:03:10.5]} 22... Kd7 {[%clk 0:06:55.8]} 23. Kc2 {[%clk 0:03:07.8]}
23... Bf3 {[%clk 0:06:45.6]} 24. h4 {[%clk 0:02:44.4]} 24... g4 {[%clk
0:06:37.4]} 25. Kb3 {[%clk 0:02:14.8]} 25... Rc8 {[%clk 0:06:21.3]} 26. Ra2
{[%clk 0:02:10.4]} 26... f5 {[%clk 0:04:58.9]} 27. Rd2+ {[%clk 0:02:09.2]} 27...
Ke7 {[%clk 0:04:59.4]} 28. h5 {[%clk 0:01:58.7]} 28... f4 {[%clk 0:04:45.1]} 29.
Bh4+ {[%clk 0:01:54.9]} 29... Bf6 {[%clk 0:04:34.1]} 30. Bxf6+ {[%clk
0:01:54.3]} 30... Kxf6 {[%clk 0:04:36]} 31. Rd6 {[%clk 0:01:47.9]} 31... Re8
{[%clk 0:04:36.8]} 32. Nd5+ {[%clk 0:01:23.7]} 32... Bxd5 {[%clk 0:04:18.5]} 33.
Bxd5 {[%clk 0:01:25.6]} 33... g3 {[%clk 0:03:39.8]} 34. fxg3 {[%clk 0:01:21.8]}
34... fxg3 {[%clk 0:03:41.7]} 35. Rxb6 {[%clk 0:00:55.3]} 35... Kf5 {[%clk
0:03:30.5]} 36. Rc6 {[%clk 0:00:45.7]} 36... Ng5 {[%clk 0:03:06.5]} 37. Bg2
{[%clk 0:00:42]} 37... e4 {[%clk 0:01:14.6]} 38. b5 {[%clk 0:00:41.4]} 38... Nf3
{[%clk 0:01:14.5]} 39. a4 {[%clk 0:00:32.5]} 39... Ne1 {[%clk 0:01:11.1]} 40.
Bh3+ {[%clk 0:00:25.7]} 40... Kg5 {[%clk 0:01:06.8]} 41. Rc1 {[%clk 0:00:17.8]}
41... Kh4 {[%clk 0:00:53.6]} 42. Rxe1 {[%clk 0:00:17.3]} 42... Kxh3 {[%clk
0:00:54.9]} 43. b6 {[%clk 0:00:18.1]} 43... g2 {[%clk 0:00:34.4]} 44. a5 {[%clk
0:00:18.3]} 44... Rf8 {[%clk 0:00:30.6]} 45. Rg1 {[%clk 0:00:17.7]} 45... Rf1
{[%clk 0:00:24.9]} 46. Rxg2 {[%clk 0:00:18.5]} 46... Kxg2 {[%clk 0:00:26.8]} 47.
Ka2 {[%clk 0:00:18.9]} 47... Rf2+ {[%clk 0:00:22.9]} 48. Ka3 {[%clk 0:00:19.3]}
48... Rf1 {[%clk 0:00:19.9]} 49. b7 {[%clk 0:00:15.2]} 49... Rb1 {[%clk
0:00:19.6]} 50. a6 {[%clk 0:00:13]} 50... Kf2 {[%clk 0:00:13.2]} 51. a7 {[%clk
0:00:10.5]} 51... Rxb7 {[%clk 0:00:14]} 52. a8=Q {[%clk 0:00:10.3]} 1-0

[Event "GrandPrix_30.05"]
[Site "Chess.com"]
[Date "2020.05.30"]
[Round "5"]
[White "Murad_Ibrahimli"]
[Black "Yurovskykh_Alexander"]
[Result "1-0"]
[WhiteElo "2567"]
[BlackElo "2302"]
[TimeControl "600+2"]
[EndTime "10:27:56 PDT"]
[Termination "Murad_Ibrahimli won on time"]

1. d4 {[%clk 0:10:01.9]} 1... d5 {[%clk 0:09:52.6]} 2. Nf3 {[%clk 0:10:00.2]}
2... Nf6 {[%clk 0:09:46.6]} 3. c4 {[%clk 0:09:59]} 3... dxc4 {[%clk 0:09:47]} 4.
e3 {[%clk 0:09:59.2]} 4... e6 {[%clk 0:09:45.9]} 5. Bxc4 {[%clk 0:09:58.7]} 5...
c5 {[%clk 0:09:47.3]} 6. O-O {[%clk 0:09:59.3]} 6... Nc6 {[%clk 0:09:48.3]} 7.
Qe2 {[%clk 0:09:59.1]} 7... cxd4 {[%clk 0:09:49.2]} 8. Rd1 {[%clk 0:09:59.1]}
8... Be7 {[%clk 0:09:50.7]} 9. exd4 {[%clk 0:09:59.1]} 9... O-O {[%clk
0:09:51.2]} 10. Nc3 {[%clk 0:09:59.2]} 10... Na5 {[%clk 0:09:52.5]} 11. Bd3
{[%clk 0:09:56.7]} 11... b6 {[%clk 0:09:53.8]} 12. Bg5 {[%clk 0:09:04.7]} 12...
Bb7 {[%clk 0:09:52.9]} 13. Ne5 {[%clk 0:09:01.3]} 13... Nd5 {[%clk 0:09:44.8]}
14. Bd2 {[%clk 0:08:23.1]} 14... Nxc3 {[%clk 0:09:35.6]} 15. bxc3 {[%clk
0:08:21.5]} 15... Nc6 {[%clk 0:09:35.6]} 16. Qe4 {[%clk 0:07:24.4]} 16... f5
{[%clk 0:09:34]} 17. Nxc6 {[%clk 0:07:16.9]} 17... fxe4 {[%clk 0:09:32.8]} 18.
Nxd8 {[%clk 0:07:18]} 18... Rfxd8 {[%clk 0:09:27.6]} 19. Be2 {[%clk 0:07:03.1]}
19... Rac8 {[%clk 0:09:05]} 20. a4 {[%clk 0:06:44]} 20... Bd5 {[%clk 0:09:05.5]}
21. a5 {[%clk 0:06:43.1]} 21... Bc4 {[%clk 0:09:06.4]} 22. Bxc4 {[%clk
0:06:36.2]} 22... Rxc4 {[%clk 0:09:08.3]} 23. axb6 {[%clk 0:06:37.3]} 23... axb6
{[%clk 0:09:10.2]} 24. Re1 {[%clk 0:06:06]} 24... e5 {[%clk 0:08:44.2]} 25. Rxe4
{[%clk 0:06:03.6]} 25... Bf6 {[%clk 0:07:56]} 26. Be3 {[%clk 0:05:55.6]} 26...
b5 {[%clk 0:07:37.5]} 27. Rb1 {[%clk 0:04:40.5]} 27... exd4 {[%clk 0:06:51.7]}
28. cxd4 {[%clk 0:04:38]} 28... b4 {[%clk 0:06:52.1]} 29. g4 {[%clk 0:04:27.6]}
29... h6 {[%clk 0:06:46.8]} 30. Kg2 {[%clk 0:04:20.7]} 30... Rb8 {[%clk
0:06:42.1]} 31. Kf3 {[%clk 0:03:20.5]} 31... b3 {[%clk 0:06:17.4]} 32. d5 {[%clk
0:03:15.3]} 32... Rxe4 {[%clk 0:05:55.1]} 33. Kxe4 {[%clk 0:03:14.2]} 33... b2
{[%clk 0:05:56.5]} 34. Kd3 {[%clk 0:03:08.3]} 34... Kf7 {[%clk 0:05:44.4]} 35.
Bd4 {[%clk 0:02:27.8]} 35... Bxd4 {[%clk 0:05:35.2]} 36. Kxd4 {[%clk 0:02:26.4]}
36... Ke7 {[%clk 0:05:35.5]} 37. Ke5 {[%clk 0:01:45.1]} 37... Rb3 {[%clk
0:05:27.3]} 38. f4 {[%clk 0:01:41.6]} 38... Rb5 {[%clk 0:05:21.4]} 39. h4 {[%clk
0:01:39.2]} 39... Kd7 {[%clk 0:05:13.7]} 40. g5 {[%clk 0:01:37.3]} 40... h5
{[%clk 0:04:56.3]} 41. f5 {[%clk 0:01:23.5]} 41... Rb3 {[%clk 0:04:44.5]} 42. f6
{[%clk 0:01:17.1]} 42... g6 {[%clk 0:04:39.1]} 43. d6 {[%clk 0:01:11.5]} 43...
Rb5+ {[%clk 0:04:11.6]} 44. Kd4 {[%clk 0:01:10.2]} 44... Kxd6 {[%clk 0:03:43.5]}
45. Kc3 {[%clk 0:01:10]} 45... Ke6 {[%clk 0:01:26.1]} 46. Rxb2 {[%clk
0:01:07.5]} 46... Rf5 {[%clk 0:01:26.3]} 47. Re2+ {[%clk 0:00:52.2]} 47... Kf7
{[%clk 0:01:23.9]} 48. Kd4 {[%clk 0:00:52.9]} 48... Kf8 {[%clk 0:01:17.3]} 49.
Re7 {[%clk 0:00:50.7]} 49... Rf4+ {[%clk 0:01:13.6]} 50. Ke5 {[%clk 0:00:51.6]}
50... Rxh4 {[%clk 0:01:05.9]} 51. Rg7 {[%clk 0:00:52.5]} 51... Rg4 {[%clk
0:00:26.4]} 52. Rxg6 {[%clk 0:00:50.4]} 52... h4 {[%clk 0:00:23.1]} 53. Kf5
{[%clk 0:00:49]} 53... Rg1 {[%clk 0:00:16.6]} 54. Rh6 {[%clk 0:00:49.6]} 54...
Kf7 {[%clk 0:00:09.8]} 55. Rh7+ {[%clk 0:00:48.9]} 55... Kg8 {[%clk 0:00:09.6]}
56. Rxh4 {[%clk 0:00:45.2]} 56... Ra1 {[%clk 0:00:04.2]} 57. Kg6 {[%clk
0:00:44.4]} 57... Ra6 {[%clk 0:00:05.6]} 58. Rh7 {[%clk 0:00:41.7]} 58... Rb6
{[%clk 0:00:03.7]} 59. Rc7 {[%clk 0:00:42.2]} 1-0

[Event "GrandPrix_30.05"]
[Site "Chess.com"]
[Date "2020.05.30"]
[Round "5"]
[White "Sakkcapak"]
[Black "Mesropov_Konstantin"]
[Result "0-1"]
[WhiteElo "2155"]
[BlackElo "2327"]
[TimeControl "600+2"]
[EndTime "10:27:59 PDT"]
[Termination "Mesropov_Konstantin won by resignation"]

1. c4 {[%clk 0:10:01.9]} 1... e6 {[%clk 0:09:58.1]} 2. g3 {[%clk 0:10:01.5]}
2... d5 {[%clk 0:09:55.4]} 3. Bg2 {[%clk 0:10:01.2]} 3... g6 {[%clk 0:09:52]} 4.
Nf3 {[%clk 0:09:35.2]} 4... Bg7 {[%clk 0:09:49.1]} 5. O-O {[%clk 0:09:30.8]}
5... Ne7 {[%clk 0:09:49.1]} 6. d4 {[%clk 0:09:20.3]} 6... Nbc6 {[%clk
0:09:40.9]} 7. cxd5 {[%clk 0:09:12.9]} 7... exd5 {[%clk 0:09:26.9]} 8. Nc3
{[%clk 0:09:03.9]} 8... O-O {[%clk 0:09:21.4]} 9. Bg5 {[%clk 0:08:34.1]} 9...
Re8 {[%clk 0:08:51.2]} 10. e3 {[%clk 0:08:14.4]} 10... f6 {[%clk 0:08:41]} 11.
Bf4 {[%clk 0:08:14.6]} 11... g5 {[%clk 0:08:41.7]} 12. Nxg5 {[%clk 0:08:10.2]}
12... fxg5 {[%clk 0:08:42]} 13. Bxg5 {[%clk 0:08:12.1]} 13... Be6 {[%clk
0:08:04]} 14. Qb3 {[%clk 0:07:06]} 14... Qd7 {[%clk 0:07:24.4]} 15. Qxb7 {[%clk
0:06:45.3]} 15... Rab8 {[%clk 0:07:22.4]} 16. Qa6 {[%clk 0:06:45]} 16... Rxb2
{[%clk 0:07:19.7]} 17. Na4 {[%clk 0:05:47.3]} 17... Rc2 {[%clk 0:06:06.5]} 18.
Rfc1 {[%clk 0:04:26.5]} 18... Nb4 {[%clk 0:05:42.7]} 19. Qa5 {[%clk 0:03:59.7]}
19... Nec6 {[%clk 0:05:39.9]} 20. Qb5 {[%clk 0:04:00.6]} 20... a6 {[%clk
0:05:16.6]} 21. Qf1 {[%clk 0:03:59.4]} 21... Bf5 {[%clk 0:04:23.1]} 22. Nc5
{[%clk 0:03:49.6]} 22... Qf7 {[%clk 0:04:23]} 23. Rxc2 {[%clk 0:03:44]} 23...
Nxc2 {[%clk 0:03:52.8]} 24. Rc1 {[%clk 0:03:44.2]} 24... N6b4 {[%clk 0:03:31.9]}
25. Qd1 {[%clk 0:02:48.2]} 25... c6 {[%clk 0:03:17.2]} 26. Qd2 {[%clk
0:02:37.4]} 26... a5 {[%clk 0:03:03.8]} 27. Bf4 {[%clk 0:02:16.3]} 27... Na3
{[%clk 0:02:42.1]} 28. Bf1 {[%clk 0:02:05.2]} 28... Nc4 {[%clk 0:02:23.3]} 29.
Qd1 {[%clk 0:01:10.8]} 29... Nxa2 {[%clk 0:02:09]} 30. Ra1 {[%clk 0:01:10.7]}
30... Nc3 {[%clk 0:01:50.5]} 31. Qc1 {[%clk 0:00:57.5]} 31... Ne4 {[%clk
0:01:48.5]} 32. Nxe4 {[%clk 0:00:49.8]} 32... Bxe4 {[%clk 0:01:47.2]} 33. Bxc4
{[%clk 0:00:49.2]} 33... dxc4 {[%clk 0:01:47.9]} 34. Rxa5 {[%clk 0:00:50.8]}
34... Bd5 {[%clk 0:01:42.5]} 35. Qd1 {[%clk 0:00:40.7]} 35... Qf5 {[%clk
0:01:36.7]} 36. f3 {[%clk 0:00:35.4]} 36... Qd3 {[%clk 0:01:22]} 37. Qxd3 {[%clk
0:00:32.7]} 37... cxd3 {[%clk 0:01:23.1]} 38. Kf2 {[%clk 0:00:34.3]} 38... Bf8
{[%clk 0:00:54.1]} 39. e4 {[%clk 0:00:27.3]} 39... Bb4 {[%clk 0:00:46.5]} 40.
Ra4 {[%clk 0:00:21.1]} 40... d2 {[%clk 0:00:46.5]} 41. Bxd2 {[%clk 0:00:09.6]}
41... Bxd2 {[%clk 0:00:46.9]} 42. exd5 {[%clk 0:00:10.3]} 42... cxd5 {[%clk
0:00:46.1]} 43. g4 {[%clk 0:00:07.2]} 43... Bf4 {[%clk 0:00:35.5]} 44. h4 {[%clk
0:00:06.3]} 44... Rb8 {[%clk 0:00:30.2]} 45. Ra5 {[%clk 0:00:05.3]} 45... Rb2+
{[%clk 0:00:29.3]} 46. Kf1 {[%clk 0:00:06.6]} 46... Be3 {[%clk 0:00:21.5]} 47.
Rxd5 {[%clk 0:00:06.4]} 47... Rf2+ {[%clk 0:00:22.1]} 48. Ke1 {[%clk 0:00:07.4]}
48... Rxf3 {[%clk 0:00:23.4]} 49. Ke2 {[%clk 0:00:07.4]} 49... Rh3 {[%clk
0:00:24.2]} 50. h5 {[%clk 0:00:07]} 50... h6 {[%clk 0:00:24.5]} 51. Rd6 {[%clk
0:00:07.2]} 51... Bg5 {[%clk 0:00:23.7]} 52. Ra6 {[%clk 0:00:05.6]} 52... Kf7
{[%clk 0:00:23.8]} 53. Ra7+ {[%clk 0:00:03.5]} 53... Ke6 {[%clk 0:00:24.6]} 54.
Ra5 {[%clk 0:00:05.4]} 54... Rg3 {[%clk 0:00:23.1]} 55. Re5+ {[%clk 0:00:05]}
55... Kd6 {[%clk 0:00:22.4]} 0-1

[Event "GrandPrix_30.05"]
[Site "Chess.com"]
[Date "2020.05.30"]
[Round "5"]
[White "Korchmar_Vasiliy"]
[Black "VojtechPlat"]
[Result "0-1"]
[WhiteElo "2098"]
[BlackElo "2280"]
[TimeControl "600+2"]
[EndTime "10:27:59 PDT"]
[Termination "VojtechPlat won on time"]

1. d4 {[%clk 0:09:58.6]} 1... d6 {[%clk 0:09:54.2]} 2. e4 {[%clk 0:09:59.2]}
2... Nf6 {[%clk 0:09:54.7]} 3. Nc3 {[%clk 0:09:59.7]} 3... e5 {[%clk 0:09:55.9]}
4. Nf3 {[%clk 0:10:00.2]} 4... Nbd7 {[%clk 0:09:56.4]} 5. Bc4 {[%clk 0:10:00]}
5... Be7 {[%clk 0:09:57.5]} 6. O-O {[%clk 0:10:00.8]} 6... O-O {[%clk
0:09:58.6]} 7. Re1 {[%clk 0:10:01.6]} 7... c6 {[%clk 0:09:59.3]} 8. a4 {[%clk
0:10:02.2]} 8... a5 {[%clk 0:10:00]} 9. h3 {[%clk 0:10:01.5]} 9... Nb6 {[%clk
0:10:00.7]} 10. Ba2 {[%clk 0:10:01.3]} 10... Nfd7 {[%clk 0:10:01.7]} 11. dxe5
{[%clk 0:09:57]} 11... dxe5 {[%clk 0:10:02]} 12. Be3 {[%clk 0:09:54.5]} 12...
Qc7 {[%clk 0:10:02.6]} 13. Ng5 {[%clk 0:07:27.3]} 13... Bxg5 {[%clk 0:09:43.8]}
14. Bxg5 {[%clk 0:07:27.7]} 14... Nc5 {[%clk 0:09:44.7]} 15. Be3 {[%clk
0:07:01.3]} 15... Ne6 {[%clk 0:09:38.9]} 16. Qh5 {[%clk 0:06:48.7]} 16... Nd4
{[%clk 0:08:43.2]} 17. Rad1 {[%clk 0:03:05.9]} 17... Nxc2 {[%clk 0:07:55.8]} 18.
Bc5 {[%clk 0:03:05.1]} 18... Be6 {[%clk 0:07:09.5]} 19. Bxe6 {[%clk 0:02:55.9]}
19... fxe6 {[%clk 0:07:04.2]} 20. Re2 {[%clk 0:02:30.1]} 20... Nd4 {[%clk
0:06:58.9]} 21. Bxd4 {[%clk 0:02:30.6]} 21... exd4 {[%clk 0:06:59.9]} 22. Rxd4
{[%clk 0:02:32.5]} 22... e5 {[%clk 0:06:05.4]} 23. Rd3 {[%clk 0:02:29.4]} 23...
Nd7 {[%clk 0:05:38.8]} 24. Red2 {[%clk 0:02:27.5]} 24... Nc5 {[%clk 0:04:48.1]}
25. Rd6 {[%clk 0:02:27.3]} 25... Rae8 {[%clk 0:04:44.1]} 26. Qg4 {[%clk
0:01:57]} 26... Qf7 {[%clk 0:04:38.6]} 27. f3 {[%clk 0:01:50.5]} 27... Ne6
{[%clk 0:03:51.6]} 28. Ne2 {[%clk 0:01:43]} 28... g6 {[%clk 0:03:44.6]} 29. h4
{[%clk 0:01:32.8]} 29... Kh8 {[%clk 0:03:44.9]} 30. Qg3 {[%clk 0:01:15.7]} 30...
Nc5 {[%clk 0:03:38.8]} 31. Nc3 {[%clk 0:00:53.1]} 31... Qf4 {[%clk 0:02:56.6]}
32. Qf2 {[%clk 0:00:39.7]} 32... Nb3 {[%clk 0:02:56.6]} 33. R2d3 {[%clk
0:00:33.1]} 33... Nd4 {[%clk 0:01:51.6]} 34. Rd7 {[%clk 0:00:33.6]} 34... Rf7
{[%clk 0:01:25.9]} 35. R3xd4 {[%clk 0:00:16.5]} 35... exd4 {[%clk 0:01:26]} 36.
Qxd4+ {[%clk 0:00:18.4]} 36... Kg8 {[%clk 0:01:25]} 37. Qc4 {[%clk 0:00:18.4]}
37... Kg7 {[%clk 0:01:15.5]} 38. Qd4+ {[%clk 0:00:08.2]} 38... Qe5 {[%clk
0:01:05]} 39. Rxf7+ {[%clk 0:00:08.7]} 39... Kxf7 {[%clk 0:01:05.5]} 40. Qd7+
{[%clk 0:00:06.6]} 40... Qe7 {[%clk 0:01:01.9]} 41. Qd4 {[%clk 0:00:07.2]} 41...
Qxh4 {[%clk 0:00:59.2]} 42. Qb6 {[%clk 0:00:07.6]} 42... Qe7 {[%clk 0:00:57.4]}
43. Qxa5 {[%clk 0:00:07.9]} 43... Rd8 {[%clk 0:00:53.6]} 44. Qb6 {[%clk
0:00:05.3]} 44... Rd2 {[%clk 0:00:50.9]} 45. Qe3 {[%clk 0:00:03.7]} 45... Qd6
{[%clk 0:00:48]} 46. Ne2 {[%clk 0:00:03.7]} 46... Rd3 {[%clk 0:00:42.2]} 47. Qh6
{[%clk 0:00:04]} 47... Kg8 {[%clk 0:00:39.9]} 48. Nf4 {[%clk 0:00:05]} 48...
Rd1+ {[%clk 0:00:35.2]} 49. Kh2 {[%clk 0:00:06.4]} 49... Qe5 {[%clk 0:00:27.6]}
50. b3 {[%clk 0:00:04.5]} 50... Rd6 {[%clk 0:00:19.8]} 51. g3 {[%clk 0:00:02.9]}
51... Rd2+ {[%clk 0:00:17.8]} 52. Kh3 {[%clk 0:00:04.2]} 52... Rd1 {[%clk
0:00:17.9]} 53. Kg4 {[%clk 0:00:03.1]} 53... Qe7 {[%clk 0:00:18.5]} 54. Qg5
{[%clk 0:00:02.8]} 54... Qd7+ {[%clk 0:00:18.5]} 0-1